fUSD/lending_fUSD_20260126
["ID","MTS","AMOUNT","RATE_DAILY","PERIOD"]
[403638878,1769440367964,-207.04,0.00018082,21]
[403638879,1769440367986,-207.04,0.00018082,21]
[403638880,1769440368008,-207.04,0.00018082,21]
[403638881,1769440368030,-207.04,0.00018082,21]
[403638882,1769440368059,-207.26067904,0.00018082,21]
[403638883,1769440431001,-207.04,0.00018082,20]
[403638886,1769440480216,-2903.02932096,0.0002,20]
[403638980,1769441431611,-300.0,0.00011771,2]
[403638981,1769441431620,-20.65660765,0.00011771,2]
[403638982,1769441431633,-625.6194234,0.00011771,2]
[403638983,1769441431647,-553.72396895,0.00011771,2]
[403638984,1769441431657,-250.0,0.00011772,2]
[403638985,1769441431666,-75.21791832,0.00011772,2]
[403638986,1769441431678,-74.78208168,0.00011772,2]
[403638987,1769441431687,-300.0,0.00011772,2]
[403638988,1769441431697,-500.0,0.00011773,2]
[403638989,1769441431709,-500.0,0.00011773,2]
[403638990,1769441431718,-500.0,0.00011773,2]
[403638991,1769441431727,-340.60270466,0.00011773,2]
[403638992,1769441431739,-131.41355041,0.00011773,2]
[403638993,1769441431749,-500.0,0.00011773,2]
[403638994,1769441431759,-500.0,0.00011773,2]
[403638995,1769441431768,-500.0,0.00011773,2]
[403638996,1769441431778,-500.0,0.00011773,2]
[403638997,1769441431787,-500.0,0.00011773,2]
[403638998,1769441431797,-500.0,0.00011773,2]
[403638999,1769441431807,-613.07928255,0.00011773,2]
[403639000,1769441431816,-500.0,0.00011773,2]
[403639001,1769441431825,-500.0,0.00011773,2]
[403639002,1769441431836,-500.0,0.00011773,2]
[403639003,1769441431845,-20.9598917,0.00011773,2]
[403639004,1769441431858,-479.0401083,0.00011773,2]
[403639005,1769441431868,-500.0,0.00011773,2]
[403639006,1769441431877,-409.91910471,0.00011773,2]
[403639007,1769441431886,-420.10334993,0.00011773,2]
[403639009,1769441431896,-532.31,0.00011773,2]
[403639011,1769441431905,-532.31,0.00012047,2]
[403639014,1769441431915,-1000.0,0.00012321,2]
[403639017,1769441431924,-1000.0,0.00012321,2]
[403639019,1769441431934,-1000.0,0.00012321,2]
[403639022,1769441431944,-1000.0,0.00012321,2]
[403639026,1769441431958,-1000.0,0.00012321,2]
[403639029,1769441431967,-427.48590483,0.00012321,2]
[403639032,1769441431979,-572.51409517,0.00012321,2]
[403639035,1769441431988,-1000.0,0.00012321,2]
[403639038,1769441431998,-1000.0,0.00012321,2]
[403639041,1769441432007,-1019.79945563,0.00012321,2]
[403639044,1769441432017,-1000.0,0.00012321,2]
[403639047,1769441432026,-1000.0,0.00012321,2]
[403639049,1769441432035,-1000.0,0.00012321,2]
[403639052,1769441432044,-1000.0,0.00012321,2]
[403639055,1769441432053,-735.6864492,0.00012321,2]
[403639058,1769441432064,-264.3135508,0.00012321,2]
[403639060,1769441432072,-532.31,0.00012321,2]
[403639062,1769441432082,-212.11747748,0.00012595,2]
[403639064,1769441432093,-320.19252252,0.00012595,2]
[403639066,1769441432103,-255.0,0.00012843,2]
[403639067,1769441432112,-532.31,0.00012868,2]
[403639069,1769441432121,-214.07979844,0.00012868,2]
[403639071,1769441432132,-52.53892421,0.00012868,2]
[403639072,1769441432142,-420.0,0.00012925,2]
[403639073,1769441432152,-239.90536839,0.00012948,2]
[403639074,1769441432198,-1440.09463161,0.00012948,2]
[403639075,1769441432209,-250.0,0.00012948,2]
[403639076,1769441432219,-300.0,0.00012948,2]
[403639077,1769441432228,-250.0,0.00012949,2]
[403639078,1769441432238,-7820.77,0.00012974,2]
[403639079,1769441432247,-532.36,0.00013142,2]
[403639080,1769441432256,-275.93,0.000135,2]
[403639081,1769441432266,-151.0,0.00013982,2]
[403639082,1769441432276,-500.0,0.00013989,2]
[403639083,1769441432285,-500.0,0.00013989,2]
[403639084,1769441432294,-500.0,0.00013989,2]
[403639085,1769441432303,-500.0,0.00013989,2]
[403639086,1769441432312,-500.0,0.00013989,2]
[403639087,1769441432323,-202.88619949,0.00013989,2]
[403639088,1769441432333,-500.0,0.00013989,2]
[403639089,1769441432343,-500.0,0.00013989,2]
[403639090,1769441432355,-298.25475053,0.00013989,2]
[403639091,1769441432365,-211.65828521,0.00013989,2]
[403639092,1769441432374,-500.0,0.00013989,2]
[403639093,1769441432384,-500.0,0.00013989,2]
[403639094,1769441432405,-106.13563384,0.00013989,2]
[403639095,1769441432422,-393.86436616,0.00013989,2]
[403639096,1769441432431,-500.0,0.00013989,2]
[403639097,1769441432440,-500.0,0.00013989,2]
[403639098,1769441432450,-500.0,0.00013989,2]
[403639099,1769441432460,-500.0,0.00013989,2]
[403639100,1769441432469,-171.16736585,0.00013989,2]
[403639101,1769441432479,-500.0,0.00013989,2]
[403639102,1769441432488,-500.0,0.00013989,2]
[403639103,1769441432498,-500.0,0.00013989,2]
[403639104,1769441432507,-583.95631436,0.00013989,2]
[403639105,1769441432516,-500.0,0.00013989,2]
[403639106,1769441432526,-500.0,0.00013989,2]
[403639107,1769441432535,-499.99999999,0.00013989,2]
[403639108,1769441432545,-500.0,0.00013989,2]
[403639109,1769441432554,-500.0,0.00013989,2]
[403639110,1769441432563,-500.0,0.00013989,2]
[403639111,1769441432572,-500.0,0.00013989,2]
[403639112,1769441432582,-500.0,0.00013989,2]
[403639113,1769441432591,-50585.80378645,0.0001399,2]
[403639114,1769441432603,-1825.06357538,0.0001399,2]
[403639115,1769441432615,-9805.73974299,0.0001399,2]
[403639116,1769441432630,-250.0,0.0001399,2]
[403639117,1769441432642,-764.48554386,0.0001399,2]
[403639118,1769441432653,-413.60445614,0.0001399,2]
[403639119,1769441432673,-228.89581185,0.0001399,2]
[403639120,1769441432683,-397.41994769,0.00014008,2]
[403639121,1769441432695,-35.58005231,0.00014008,2]
[403639122,1769441432710,-500.0,0.0001411,2]
[403639123,1769441432720,-160.53195207,0.00014192,2]
[403639126,1769441437951,-426.46804793,0.00014192,2]
[403639127,1769441437962,-304.99848131,0.00014243,2]
[403639128,1769441438054,-2046.00151869,0.00014243,2]
[403639129,1769441438064,-142.98180783,0.00014263,2]
[403639130,1769441438076,-295.86658145,0.00014263,2]
[403639131,1769441438090,-61.15161072,0.00014263,2]
[403639132,1769441438100,-1221.18,0.00014405,2]
[403639133,1769441438109,-1249.87,0.00014414,2]
[403639134,1769441438119,-1249.87,0.00014437,2]
[403639135,1769441438129,-3240.0,0.00014456,2]
[403639136,1769441438139,-1249.87,0.0001446,2]
[403639137,1769441438149,-1249.87,0.00014483,2]
[403639139,1769441438158,-1249.87,0.00014505,2]
[403639140,1769441438167,-1249.87,0.00014528,2]
[403639141,1769441438177,-500.0,0.00014537,2]
[403639142,1769441438186,-1249.87,0.00014551,2]
[403639143,1769441438196,-1249.87,0.00014574,2]
[403639144,1769441438207,-1249.87,0.00014597,2]
[403639145,1769441438217,-1249.87,0.00014619,2]
[403639146,1769441438227,-1249.87,0.00014642,2]
[403639147,1769441438237,-1249.87,0.00014665,2]
[403639148,1769441438247,-1249.87,0.00014688,2]
[403639149,1769441438257,-1249.87,0.0001471,2]
[403639150,1769441438267,-1249.87,0.00014733,2]
[403639151,1769441438277,-151.0,0.00014747,2]
[403639152,1769441438287,-151.0,0.00014747,2]
[403639153,1769441438296,-1249.87,0.00014756,2]
[403639154,1769441438306,-1249.87,0.00014779,2]
[403639155,1769441438316,-1249.87,0.00014801,2]
[403639156,1769441438326,-267.52,0.0001481,2]
[403639158,1769441438336,-500.0,0.00014811,2]
[403639159,1769441438346,-1249.87,0.00014824,2]
[403639161,1769441438356,-1249.87,0.00014847,2]
[403639162,1769441438366,-250.0,0.00014851,2]
[403639163,1769441438376,-500.0,0.00014959,2]
[403639164,1769441438386,-150.00355152,0.00015077,2]
[403639165,1769441438396,-456.99230319,0.00015085,2]
[403639166,1769441438406,-1221.18,0.00015126,2]
[403639167,1769441438416,-151.0,0.00015158,2]
[403639168,1769441438425,-200.0,0.0001555,2]
[403639169,1769441438435,-11098.39,0.0001555,2]
[403639170,1769441438445,-823.0,0.00015583,2]
[403639171,1769441438455,-3039.0,0.00015667,2]
[403639172,1769441438467,-1221.18,0.00015846,2]
[403639173,1769441438477,-370.33,0.00015918,2]
[403639174,1769441438486,-798.0,0.00016438,2]
[403639175,1769441438497,-3180.53684856,0.000165,2]
[403639176,1769441438507,-370.33,0.00016515,2]
[403639177,1769441438518,-1221.18,0.00016566,2]
[403639178,1769441438527,-150.00355152,0.00016567,2]
[403639179,1769441438538,-500.0,0.00016582,3]
[403639180,1769441438548,-470.55891271,0.000166,2]
[403639181,1769441438557,-2500.0,0.000166,2]
[403639182,1769441438567,-2568.02432861,0.00016612,2]
[403639183,1769441438577,-473.24491852,0.00016612,2]
[403639184,1769441438587,-309.086746,0.00016612,2]
[403639185,1769441438597,-3180.5368485,0.00016656,2]
[403639186,1769441438607,-267.52,0.00016662,2]
[403639187,1769441438617,-500.0,0.00016699,2]
[403639188,1769441438629,-500.0,0.00016699,2]
[403639189,1769441438640,-500.0,0.00016699,2]
[403639190,1769441438650,-500.0,0.00016699,2]
[403639191,1769441438659,-500.0,0.00016699,2]
[403639192,1769441438670,-500.0,0.00016699,2]
[403639193,1769441438679,-500.0,0.00016699,2]
[403639194,1769441438689,-287.69959162,0.00016699,2]
[403639195,1769441438698,-500.0,0.00016699,2]
[403639196,1769441438711,-500.0,0.00016699,2]
[403639197,1769441438721,-500.0,0.00016699,2]
[403639198,1769441438730,-244.36749755,0.00016699,2]
[403639199,1769441438746,-258.79623583,0.00016699,2]
[403639200,1769441438757,-467.67104238,0.00016699,2]
[403639201,1769441438767,-500.0,0.00016699,2]
[403639202,1769441438777,-150.0,0.00016699,2]
[403639203,1769441438787,-165.4,0.00016712,2]
[403639204,1769441438797,-2568.02432857,0.00016755,2]
[403639205,1769441438808,-309.08674599,0.00016796,2]
[403639206,1769441438819,-1000.0,0.000168,2]
[403639207,1769441438830,-3180.5368485,0.00016811,2]
[403639208,1769441438841,-4355.38541543,0.00016889,2]
[403639213,1769441439791,-15000.0,0.00016889,2]
[403639214,1769441439870,-358.43348916,0.00016889,2]
[403639215,1769441439882,-442.82518552,0.00016889,2]
[403639216,1769441439903,-443.6289,0.00016889,2]
[403639217,1769441439914,-367.25898754,0.00016889,2]
[403639218,1769441439926,-568948.43057915,0.00016889,2]
[403639219,1769441439937,-2568.02432857,0.00016898,2]
[403639220,1769441439946,-500.0,0.00016899,2]
[403639221,1769441439956,-551.95368049,0.00016899,2]
[403639222,1769441439965,-504.38275223,0.00016899,2]
[403639223,1769441439975,-500.0,0.00016899,2]
[403639224,1769441439984,-500.0,0.00016899,2]
[403639225,1769441439994,-500.0,0.00016899,2]
[403639226,1769441440003,-500.0,0.00016899,2]
[403639227,1769441440012,-3180.5368485,0.00016967,2]
[403639228,1769441440021,-309.08674599,0.0001698,2]
[403639229,1769441440030,-798.0,0.00016986,2]
[403639230,1769441440040,-250.0,0.00017,2]
[403639231,1769441440050,-2568.02432857,0.00017041,2]
[403639232,1769441440064,-158.77791206,0.00017088,2]
[403639233,1769441440074,-9000.0,0.00017099,2]
[403639234,1769441440083,-3113.21158034,0.00017099,2]
[403639235,1769441440093,-578.20924308,0.00017099,2]
[403639236,1769441440103,-250.0,0.00017099,2]
[403639237,1769441440112,-9552.16786547,0.00017099,2]
[403639238,1769441440121,-500.0,0.00017099,2]
[403639239,1769441440135,-250.0,0.00017099,2]
[403639240,1769441440144,-705.97670987,0.00017099,2]
[403639241,1769441440155,-500.0,0.00017099,2]
[403639242,1769441440165,-250.0,0.00017099,2]
[403639243,1769441440175,-500.0,0.00017099,2]
[403639244,1769441440185,-250.0,0.00017099,2]
[403639245,1769441440194,-500.0,0.00017099,2]
[403639246,1769441440204,-250.0,0.00017099,2]
[403639247,1769441440214,-500.0,0.00017099,2]
[403639248,1769441440224,-250.0,0.00017099,2]
[403639249,1769441440233,-500.0,0.00017099,2]
[403639250,1769441440242,-250.0,0.00017099,2]
[403639251,1769441440252,-500.0,0.00017099,2]
[403639252,1769441440261,-250.0,0.00017099,2]
[403639253,1769441440270,-500.0,0.00017099,2]
[403639254,1769441440279,-250.0,0.00017099,2]
[403639255,1769441440288,-500.0,0.00017099,2]
[403639256,1769441440297,-250.0,0.00017099,2]
[403639257,1769441440307,-500.0,0.00017099,2]
[403639258,1769441440316,-250.0,0.00017099,2]
[403639259,1769441440325,-500.0,0.00017099,2]
[403639260,1769441440335,-250.0,0.00017099,2]
[403639261,1769441440343,-250.0,0.00017099,2]
[403639262,1769441440353,-250.0,0.00017099,2]
[403639263,1769441440362,-250.0,0.00017099,2]
[403639264,1769441440372,-250.0,0.00017099,2]
[403639265,1769441440381,-250.0,0.00017099,2]
[403639266,1769441440726,-250.0,0.00017099,2]
[403639267,1769441440736,-250.0,0.00017099,2]
[403639268,1769441440746,-250.0,0.00017099,2]
[403639269,1769441440756,-250.0,0.00017099,2]
[403639270,1769441440766,-250.0,0.00017099,2]
[403639271,1769441440775,-151.0,0.00017099,2]
[403639272,1769441440785,-854.2589148,0.00017099,2]
[403639273,1769441440795,-250.0,0.00017099,2]
[403639274,1769441440805,-250.0,0.00017099,2]
[403639275,1769441440814,-250.0,0.00017099,2]
[403639276,1769441440824,-250.0,0.00017099,2]
[403639277,1769441440834,-250.0,0.00017099,2]
[403639278,1769441440845,-3543.0,0.00017099,2]
[403639279,1769441440856,-250.0,0.00017099,2]
[403639280,1769441440866,-250.0,0.00017099,2]
[403639281,1769441440876,-322.6107,0.00017099,2]
[403639282,1769441440886,-250.0,0.00017099,2]
[403639283,1769441440896,-250.0,0.00017099,2]
[403639284,1769441440906,-250.0,0.00017099,2]
[403639285,1769441440917,-250.0,0.00017099,2]
[403639286,1769441440926,-250.0,0.00017099,2]
[403639287,1769441440937,-250.0,0.00017099,2]
[403639288,1769441440948,-250.0,0.00017099,2]
[403639289,1769441440958,-250.0,0.00017099,2]
[403639290,1769441440968,-721.12765535,0.00017099,2]
[403639291,1769441440978,-250.0,0.00017099,2]
[403639292,1769441440987,-174.61919141,0.00017099,2]
[403639293,1769441440996,-250.0,0.00017099,2]
[403639294,1769441441006,-250.0,0.00017099,2]
[403639295,1769441441015,-250.0,0.00017099,2]
[403639296,1769441441024,-365.99673536,0.00017099,2]
[403639297,1769441441033,-250.0,0.00017099,2]
[403639298,1769441441042,-250.0,0.00017099,2]
[403639299,1769441441052,-250.0,0.00017099,2]
[403639300,1769441441061,-250.0,0.00017099,2]
[403639301,1769441441071,-250.0,0.00017099,2]
[403639302,1769441441080,-250.0,0.00017099,2]
[403639303,1769441441089,-250.0,0.00017099,2]
[403639304,1769441441098,-250.0,0.00017099,2]
[403639305,1769441441107,-250.0,0.00017099,2]
[403639306,1769441441116,-250.0,0.00017099,2]
[403639307,1769441441126,-250.0,0.00017099,2]
[403639308,1769441441135,-250.0,0.00017099,2]
[403639309,1769441441145,-250.0,0.00017099,2]
[403639310,1769441441155,-250.0,0.00017099,2]
[403639311,1769441441164,-250.0,0.00017099,2]
[403639312,1769441441174,-250.0,0.00017099,2]
[403639313,1769441441183,-313.34353873,0.00017099,2]
[403639314,1769441441193,-1406.74876121,0.000171,2]
[403639315,1769441441203,-1152.0,0.00017111,2]
[403639316,1769441441214,-370.33,0.00017112,2]
[403639317,1769441441224,-3180.5368485,0.00017122,2]
[403639318,1769441441234,-9905.5980765,0.00017154,2]
[403639319,1769441441243,-309.08674599,0.00017164,2]
[403639320,1769441441253,-2568.02432857,0.00017184,2]
[403639321,1769441441262,-150.0,0.000172,2]
[403639322,1769441441272,-151.89329206,0.000172,2]
[403639323,1769441441281,-5178.09229525,0.00017209,2]
[403639324,1769441441290,-473.2449185,0.00017247,2]
[403639325,1769441441300,-1000.0,0.0001726,2]
[403639326,1769441441309,-3180.5368485,0.00017278,2]
[403639327,1769441441318,-1221.18,0.00017286,2]
[403639328,1769441441328,-560.38,0.00017296,2]
[403639329,1769441441337,-225.0,0.00017299,2]
[403639330,1769441441347,-168.0,0.00017312,2]
[403639331,1769441441356,-2568.02432857,0.00017328,2]
[403639332,1769441441365,-205.41320382,0.00017347,2]
[403639333,1769441441375,-225.0,0.00017351,2]
[403639334,1769441441384,-831.0,0.0001736,2]
[403639335,1769441441394,-152.21,0.000174,2]
[403639336,1769441441403,-613.4,0.00017422,2]
[403639337,1769441441413,-3180.5368485,0.00017433,2]
[403639338,1769441441423,-225.0,0.00017435,2]
[403639339,1769441441433,-225.0,0.0001745,2]
[403639340,1769441441442,-2568.02432857,0.00017471,2]
[403639341,1769441441452,-613.4,0.00017475,2]
[403639342,1769441441462,-613.4,0.00017527,2]
[403639343,1769441441472,-315.45,0.00017534,2]
[403639344,1769441441481,-1000.0,0.00017534,2]
[403639345,1769441441490,-560.38,0.0001757,2]
[403639346,1769441441500,-613.4,0.0001758,2]
[403639347,1769441441509,-3180.5368485,0.00017589,2]
[403639348,1769441441519,-2568.02432857,0.00017614,2]
[403639349,1769441441528,-613.4,0.00017632,2]
[403639350,1769441441541,-1733.4895823,0.00017638,2]
[403639351,1769441441550,-4237.50410409,0.00017638,2]
[403639352,1769441441561,-152.72824357,0.0001764,2]
[403639353,1769441441571,-885.86649465,0.00017647,2]
[403639354,1769441441581,-181.08010149,0.00017647,2]
[403639355,1769441441590,-2286.839,0.00017654,2]
[403639356,1769441441599,-164.8,0.00017654,2]
[403639357,1769441441609,-613.4,0.00017685,2]
[403639358,1769441441618,-150.0,0.00017699,2]
[403639359,1769441441632,-150.0,0.00017699,2]
[403639360,1769441441641,-150.0,0.00017699,2]
[403639361,1769441441651,-150.0,0.00017699,2]
[403639362,1769441441660,-150.0,0.00017699,2]
[403639363,1769441441671,-500.0,0.00017699,2]
[403639364,1769441441680,-500.0,0.00017699,2]
[403639365,1769441441689,-500.0,0.00017699,2]
[403639366,1769441441698,-150.0,0.00017699,2]
[403639367,1769441441709,-500.0,0.00017699,2]
[403639368,1769441441719,-150.0,0.00017699,2]
[403639369,1769441441729,-500.0,0.00017699,2]
[403639370,1769441441739,-150.0,0.00017699,2]
[403639371,1769441441748,-670.0,0.00017699,2]
[403639372,1769441441758,-150.0,0.00017699,2]
[403639373,1769441441768,-150.0,0.00017699,2]
[403639374,1769441441777,-370.33,0.00017709,2]
[403639375,1769441441787,-225.0,0.00017732,2]
[403639376,1769441441796,-613.4,0.00017737,2]
[403639377,1769441441806,-3180.5368485,0.00017744,2]
[403639378,1769441441816,-150.0,0.00017754,2]
[403639379,1769441441826,-150.0,0.00017754,2]
[403639380,1769441441837,-150.0,0.00017754,2]
[403639381,1769441441847,-150.0,0.00017754,2]
[403639382,1769441441857,-500.0,0.00017754,2]
[403639383,1769441441867,-500.0,0.00017754,2]
[403639384,1769441441876,-500.0,0.00017754,2]
[403639385,1769441441886,-500.0,0.00017754,2]
[403639386,1769441441895,-150.0,0.00017754,2]
[403639387,1769441441905,-500.0,0.00017754,2]
[403639388,1769441441914,-150.0,0.00017754,2]
[403639389,1769441441924,-670.0,0.00017754,2]
[403639390,1769441441933,-150.0,0.00017754,2]
[403639391,1769441441943,-2568.02432857,0.00017757,2]
[403639392,1769441441953,-613.4,0.0001779,2]
[403639393,1769441441963,-1000.0,0.00017808,2]
[403639394,1769441441973,-200.0,0.00017809,2]
[403639395,1769441441983,-150.0,0.00017809,2]
[403639396,1769441441993,-150.0,0.00017809,2]
[403639397,1769441442003,-200.0,0.00017809,2]
[403639398,1769441442013,-500.0,0.00017809,2]
[403639399,1769441442022,-500.0,0.00017809,2]
[403639400,1769441442032,-500.0,0.00017809,2]
[403639401,1769441442043,-500.0,0.00017809,2]
[403639402,1769441442052,-150.0,0.00017809,2]
[403639403,1769441442061,-500.0,0.00017809,2]
[403639404,1769441442071,-154.14477787,0.00017809,2]
[403639405,1769441442080,-670.0,0.00017809,2]
[403639406,1769441442090,-151.72557844,0.00017809,2]
[403639407,1769441442099,-613.4,0.00017842,2]
[403639408,1769441442109,-560.38,0.00017844,2]
[403639409,1769441442118,-542.08869483,0.00017847,2]
[403639410,1769441442128,-956.3087135,0.00017847,2]
[403639411,1769441442137,-1430.58064233,0.00017847,2]
[403639412,1769441442146,-1935.6183,0.00017847,2]
[403639413,1769441442156,-200.0,0.00017856,2]
[403639414,1769441442166,-150.0,0.00017863,2]
[403639415,1769441442176,-280.72866755,0.00017863,2]
[403639416,1769441442186,-500.0,0.00017863,2]
[403639417,1769441442195,-500.0,0.00017863,2]
[403639418,1769441442204,-500.0,0.00017863,2]
[403639419,1769441442215,-150.0,0.00017863,2]
[403639420,1769441442225,-500.0,0.00017863,2]
[403639421,1769441442235,-670.0,0.00017863,2]
[403639422,1769441442244,-473.2449185,0.00017882,2]
[403639423,1769441442258,-613.4,0.00017895,2]
[403639424,1769441442268,-250.88319303,0.000179,2]
[403639425,1769441442277,-3180.5368485,0.000179,2]
[403639426,1769441442286,-2568.02432857,0.000179,2]
[403639427,1769441442295,-3998.0,0.000179,2]
[403639428,1769441442305,-150.0,0.00017918,2]
[403639429,1769441442314,-500.0,0.00017918,2]
[403639430,1769441442323,-500.0,0.00017918,2]
[403639431,1769441442333,-500.0,0.00017918,2]
[403639432,1769441442343,-500.0,0.00017918,2]
[403639433,1769441442352,-670.0,0.00017918,2]
[403639434,1769441442362,-1000.0,0.0001793,2]
[403639435,1769441442372,-613.4,0.00017947,2]
[403639436,1769441442381,-500.0,0.00017973,2]
[403639437,1769441442391,-250.0,0.00017973,2]
[403639438,1769441442399,-500.0,0.00017973,2]
[403639439,1769441442409,-500.0,0.00017973,2]
[403639440,1769441442419,-500.0,0.00017973,2]
[403639441,1769441442429,-500.0,0.00017973,2]
[403639442,1769441442438,-670.0,0.00017973,2]
[403639443,1769441442448,-500.00750168,0.0001798,2]
[403639444,1769441442458,-500.0,0.00017982,2]
[403639446,1769441442468,-152.21,0.0001799,2]
[403639447,1769441442477,-152.21,0.0001799,2]
[403639448,1769441442487,-152.21,0.0001799,2]
[403639449,1769441442496,-152.21,0.0001799,2]
[403639450,1769441442505,-152.21,0.0001799,2]
[403639451,1769441442515,-152.21,0.0001799,2]
[403639452,1769441442525,-152.21,0.0001799,2]
[403639453,1769441442534,-152.21,0.0001799,2]
[403639454,1769441442544,-152.21,0.0001799,2]
[403639455,1769441442553,-152.21,0.0001799,2]
[403639456,1769441442563,-152.21,0.0001799,2]
[403639457,1769441442572,-152.21,0.0001799,2]
[403639458,1769441442582,-152.21,0.0001799,2]
[403639460,1769441442592,-152.21,0.0001799,2]
[403639462,1769441442602,-152.21,0.0001799,2]
[403639465,1769441442611,-152.21,0.0001799,2]
[403639467,1769441442621,-500.0,0.00017998,2]
[403639469,1769441442631,-23109.1711395,0.00017999,2]
[403639470,1769441442646,-1257.41754705,0.00017999,5]
[403639471,1769441442655,-1257.41754706,0.00017999,5]
[403639472,1769441442664,-1257.41754705,0.00017999,5]
[403639473,1769441442673,-53425.4313767,0.00017999,2]
[403639474,1769441442683,-500.0,0.00017999,2]
[403639475,1769441442692,-500.0,0.00017999,2]
[403639476,1769441442702,-154.8450533,0.00017999,2]
[403639477,1769441442713,-300.0,0.00017999,2]
[403639478,1769441442723,-500.0,0.00018,2]
[403639479,1769441442733,-4106993.03549353,0.00018,2]
[403639480,1769441442743,-425570.67811323,0.00018,2]
[403639496,1769441445594,-17518.16246801,0.000165,2]
[403639501,1769441445616,-396.4081748,0.000165,2]
[403639503,1769441445639,-237.58475719,0.000165,2]
[403639504,1769441445649,-309.08674599,0.00017348,2]
[403639505,1769441445660,-47868.31072785,0.00018,2]
[403639506,1769441445669,-499.999999,0.00018,2]
[403639507,1769441445678,-150.0,0.00018,7]
[403639508,1769441445688,-220.12,0.00018,2]
[403639509,1769441445697,-266.0,0.00018,2]
[403639510,1769441445709,-150.0,0.00018,2]
[403639511,1769441445719,-277.537,0.00018,2]
[403639512,1769441445728,-228.485,0.00018,2]
[403639513,1769441445738,-195.894,0.00018,2]
[403639514,1769441445747,-167.825,0.00018,2]
[403639515,1769441445756,-158.376,0.00018,2]
[403639516,1769441445766,-199.072,0.00018,2]
[403639517,1769441445775,-150.0,0.00018,2]
[403639518,1769441445786,-150.765,0.00018,2]
[403639519,1769441445795,-151.0,0.00018,2]
[403639520,1769441445804,-1269.0,0.00018,2]
[403639521,1769441445814,-1493.0848094,0.00018,2]
[403639522,1769441445824,-792.8870325,0.00018,2]
[403639523,1769441445834,-1000.0,0.00018,2]
[403639524,1769441445843,-1000.0,0.00018,2]
[403639525,1769441445853,-1000.0,0.00018,2]
[403639526,1769441445862,-1000.0,0.00018,2]
[403639527,1769441445872,-1000.0,0.00018,2]
[403639528,1769441445881,-1000.0,0.00018,2]
[403639529,1769441445891,-1000.0,0.00018,2]
[403639530,1769441445901,-1039.17,0.00018,2]
[403639531,1769441445910,-1562.5103823,0.00018,2]
[403639532,1769441445919,-184.0,0.00018,2]
[403639533,1769441445929,-18277.2857702,0.00018,2]
[403639534,1769441445939,-14580.7206634,0.00018,2]
[403639535,1769441445948,-584765.78898903,0.00018,2]
[403639543,1769441446272,-979.8749962,0.00018,2]
[403639545,1769441446294,-1518.81597667,0.00018,2]
[403639546,1769441446306,-443461.98085634,0.00018,2]
[403639547,1769441446318,-1532.35605088,0.00018,2]
[403639548,1769441446334,-3618.08339042,0.00018,2]
[403639549,1769441446345,-2448.77003185,0.00018,2]
[403639550,1769441446356,-1334.00376711,0.00018,2]
[403639551,1769441446367,-3803.95760231,0.00018,2]
[403639563,1769441541586,500.0,0.00016,30]
[403639564,1769441541675,500.0,0.00016,30]
[403639565,1769441544718,511.65349907,0.00016,30]
[403639566,1769441546924,500.0,0.00016,30]